Cogmind - Beta 17 @@@ ROGUE MODE // 2026.08.12 @ 01:43:38 Player: Ev Result: Destroyed by G-34 Mercenary with Small Laser Performance ------------- Evolutions (0) 0 Regions Visited (1) 200 Robots Destroyed (8) 40 Value Destroyed (47) 47 Prototype IDs (0) 0 Alien Tech Used (0) 0 Bonus (0) 0 TOTAL SCORE: 287 Bonus ------- None Cogmind --------- Core Integrity 0/250 Matter 209/300 Energy 100/100 System Corruption 0% Temperature Cool (6) Movement Rolling (100) Location -10/Materials Parts ------- > --- POWER (1) -------- (None) > --- PROPULSION (2) --- Compact Wheel > --- UTILITY (2) ------ Small Storage Unit Signal Interpreter > --- WEAPON (2) ------- Assault Rifle Mining Laser > --- INVENTORY (8) ---- Small Storage Unit Medium Matter Pod (100) Tractor Beam Peak State ------------ > --- POWER ------------ Light Ion Engine > --- PROPULSION ------- Wheel Wheel > --- UTILITY ---------- Small Storage Unit Improved Terrain Scanner > --- WEAPON ----------- Medium Laser Small Laser > --- INVENTORY -------- Light Ion Engine Compact Wheel Compact Wheel Small Storage Unit Tractor Beam Assault Rifle [Rating: 9] Favorites ----------- Power Light Ion Engine Engine Light Ion Engine Propulsion Wheel Wheel Wheel Utility Small Storage Unit Device Improved Terrain Scanner Storage Small Storage Unit Processor Signal Interpreter Weapon Small Laser Energy Gun Small Laser Ballistic Gun Assault Rifle Special Weapon Mining Laser Build | -11 -10 ------- Run | Yrd Mat Slots Evolved . | . . Power . | . . Propulsion . | . . Utility . | . . Weapon . | . . Parts Attached 14 | 12 2 Power 2 | 2 . Engine 2 | 2 . Core . | . . Reactor . | . . Propulsion 4 | 4 . Treads . | . . Leg . | . . Wheel 4 | 4 . Hover . | . . Flight . | . . Utility 4 | 3 1 Device 2 | 2 . Storage 1 | 1 . Processor 1 | . 1 Hackware . | . . Protection . | . . Artifact . | . . Weapon 4 | 3 1 Energy Gun 2 | 2 . Energy Cannon . | . . Ballistic Gun 1 | 1 . Ballistic Cannon . | . . Launcher . | . . Special Weapon 1 | . 1 Impact Weapon . | . . Slashing Weapon . | . . Piercing Weapon . | . . Special Melee Weapon . | . . Unidentified Prototypes . | . . Parts Lost 7 | 6 1 Power 2 | 1 1 Propulsion 3 | 3 . Utility 1 | 1 . Weapon 1 | 1 . Highest Loss Streak 5 | 5 1 To Critical Strikes . | . . Average Backups 6 | 7 3 Power . | . . Propulsion 1 | 1 . Utility 2 | 2 2 Weapon 1 | 1 . Tool/Special . | . . Unused Backups 2 | . 2 Power . | . . Propulsion . | . . Utility 2 | . 2 Weapon . | . . Tool/Special . | . . Average Slot Usage (%) 84 | . 84 Engine 13 | . 13 Wheel 14 | . 14 Device 2 | . 2 Storage 14 | . 14 Processor 12 | . 12 Energy Gun 2 | . 2 Ballistic Gun 14 | . 14 Special Weapon 12 | . 12 Peak Build Rating 9 | 9 6 Average Rating 8 | 8 5 On Entrance 3 | . 6 Avg Prop Armor Cover (%) . | . . Naked Turns . | . . Heaviest Build 12 | 12 12 Greatest Support 32 | 32 16 Greatest Overweight (x) 1 | 1 . Average Overweight (x) . | . . Largest Inventory Capacity 8 | 8 8 Average Capacity 7 | 7 8 Most Carried 8 | 8 4 Average Carried 6 | 7 3 Final Capacity 8 | 8 8 Final Carried 3 | 3 3 Class Distribution -------------------- 100% | Mutant Dominant Class ---------------- Mutant | -10/Materials Resources | -11 -10 ----------- Run | Yrd Mat Matter Collected 413 | 413 . Remotely 23 | 23 . Salvage Created 225 | 197 28 Parts 21 | 19 2 Haulers Intercepted . | . . Recyclers Shooed . | . . Parts Field Recycled . | . . Retrieved Matter . | . . Parts Self-Destructed . | . . Prevented . | . . Parts Restored . | . . Kills | -11 -10 ------- Run | Yrd Mat Combat Hostiles Destroyed . | . . Classes Destroyed 3 | 3 . Worker 3 | 2 1 Tunneler 4 | 4 . Recycler 1 | 1 . Best Kill Streak 3 | 3 1 Combat Bots Only . | . . Max Kills in Single Turn 1 | 1 1 Gunslinging . | . . Exploded . | . . Melee . | . . Uniques/NPCs Destroyed . | . . Combat | -11 -10 -------- Run | Yrd Mat Hostile Shots Fired 31 | 26 5 Missed 4 | 3 1 Hits 27 | 23 4 Projectile 27 | 23 4 AOE 11 | 11 . Damage Taken 628 | 585 43 Core 250 | 240 10 Absorbed by Shields . | . . Core Remaining (%) 4 | 4 . Volleys Fired 42 | 31 11 Largest 2 | 2 2 Hottest 120 | 90 120 Shots Fired 73 | 61 12 Gun 71 | 61 10 Cannon . | . . Launcher . | . . Special 2 | . 2 Kinetic 18 | 8 10 Thermal 55 | 53 2 Explosive . | . . Electromagnetic . | . . Robot Hit Streak 5 | 5 5 Robot Miss Streak 7 | 7 1 Penetration Max . | . . Secondary Targets . | . . Shots Hit Robots 40 | 34 6 Core Hits 10 | 9 1 Critical Kills . | . . Critical Parts Destroyed . | . . Critical Strikes 2 | 2 . Burn 2 | 2 . Melee Attacks . | . . Impact . | . . Slashing . | . . Piercing . | . . Sneak Attacks . | . . Combat Hostiles . | . . Follow-up Attacks . | . . Damage Inflicted 476 | 404 72 Guns 476 | 404 72 Cannons . | . . Explosions . | . . Melee . | . . Ramming . | . . Kinetic 86 | 14 72 Thermal 390 | 390 . Explosive . | . . Electromagnetic . | . . Impact . | . . Slashing . | . . Piercing . | . . Highest Corruption . | . . Average Corruption . | . . Corruption Purged . | . . Corruption Blocked . | . . Overload Shots . | . . Overflow Damage . | . . Projectiles . | . . Explosions . | . . Melee . | . . Knockbacks . | . . Impact . | . . Kinetic . | . . Secondary . | . . Self-Inflicted Damage . | . . Shots . | . . Rammed . | . . Targets Rammed . | . . Kicked . | . . Crushed . | . . Highest Temperature 250 | 250 40 Average Temperature 78 | 84 21 Received Heat Transfer 24 | . 24 Siege Activations . | . . Martial Activations . | . . Shielding Activations . | . . Robots Disrupted . | . . Combat Hostiles . | . . Robots Corrupted . | . . Combat Hostiles . | . . Parts Fried . | . . Impact Corruptions . | . . Robots Melted . | . . Combat Hostiles . | . . Parts Melted 2 | 2 . Heat Transferred 1165 | 1165 . Parts Sabotaged . | . . Parts Stolen . | . . Parts Stripped . | . . Power Chain Reactions . | . . Alert | -11 -10 ------- Run | Yrd Mat Maximum Alert Level . | . . Low Security (%) 100 | 100 100 Level 1 . | . . Level 2 . | . . Level 3 . | . . Level 4 . | . . Level 5 . | . . High Security . | . . Max Security . | . . Peak Influence 21 | 10 21 Initial . | . . Average . | . 3 Influence Increases 56 | 35 21 Destroy 0b10 Robot/NC 40 | 35 5 Disable Machine 15 | . 15 Destroy Structure 1 | . 1 Influence Decreases 56 | 35 21 Time Decay 55 | 35 20 Lost Part 1 | . 1 Squads Dispatched 1 | . 1 Investigation . | . . Extermination . | . . Reinforcement 1 | . 1 Assault . | . . Garrison . | . . Intercept . | . . Searches Triggered . | . . Construction Impeded . | . . Haulers Reinforced . | . . Active Scanning Responses . | . . Cargo Convoy Interrupts . | . . Stealth | -11 -10 --------- Run | Yrd Mat Distress Signals . | . . Communications Jammed . | . . Distress Signals . | . . Times Spotted 7 | 4 3 Peak Tracking Total 2 | 2 2 Tactical Retreats . | . . Traps | -11 -10 ------- Run | Yrd Mat Traps Triggered . | . . Indirectly . | . . Trap Hack Attempts . | . . Triggered . | . . Disarmed . | . . Reprogrammed . | . . Reused . | . . Traps Extracted . | . . Installed . | . . Triggered . | . . Machines | -11 -10 ---------- Run | Yrd Mat Machines Disabled 1 | . 1 Max in Single Turn 1 | . 1 Machines Repaired . | . . Machines Dismantled . | . . Machines Sabotaged . | . . Overloaded Fab Kills . | . . Hacking | -11 -10 --------- Run | Yrd Mat Machines Accessed . | . . Terminals . | . . Fabricators . | . . Repair Stations . | . . Recycling Units . | . . Scanalyzers . | . . Garrison Access . | . . Total Hacks . | . . Successful . | . . Failed . | . . Catastrophic . | . . Database Lockouts . | . . Manual . | . . Terminals . | . . Fabricators . | . . Repair Stations . | . . Recycling Units . | . . Scanalyzers . | . . Garrison Access . | . . Terminal Hacks . | . . Fabricator Hacks . | . . Repair Station Hacks . | . . Recycling Unit Hacks . | . . Scanalyzer . | . . Garrison Access Hacks . | . . Unauthorized Hacks . | . . Terminals . | . . Fabricators . | . . Repair Stations . | . . Recycling Units . | . . Scanalyzers . | . . Garrison Access . | . . Data Cores Recovered . | . . Used . | . . Hacking Detections . | . . Full Trace Events . | . . Feedback Events . | . . Feedback Blocked . | . . Robot Schematics Acquired . | . . Robots Built . | . . Authchips . | . . Time . | . . Total Robot Build Rating . | . . Part Schematics Acquired . | . . Parts Built . | . . Authchips . | . . Time . | . . Total Part Build Rating . | . . Part Studies Acquired . | . . Parts Repaired . | . . Time . | . . Parts Recycled . | . . Recycled Matter . | . . Retrieved Matter . | . . Retrieved Components . | . . Parts Scanalyzed . | . . Part Schematics Acquired . | . . Parts Damaged . | . . Bothacking | -11 -10 ------------ Run | Yrd Mat Used RIF Installer . | . . Robots Hacked . | . . Non-combat . | . . Combat . | . . Robot Hacks Applied . | . . Relay Couplers Released . | . . Fabnet Peak Effective % . | . . Robots Rewired . | . . Allies Hacked . | . . Hacks Repelled . | . . Allies | -11 -10 -------- Run | Yrd Mat Total Allies . | . . Largest Group . | . . Highest-Rated Group . | . . Highest-Rated Ally . | . . Total Orders . | . . Ally Attacks . | . . Total Damage . | . . Kills . | . . Allies Corrupted . | . . Allies Melted . | . . Intel | -11 -10 ------- Run | Yrd Mat Active Infowar (turns) 1881 | 1881 . Terrain 1881 | 1881 . Robot Analysis Total . | . . Derelict Logs Recovered . | . . Drone Launches . | . . Drone Recoveries . | . . Exploration | -11 -10 ------------- Run | Yrd Mat Turns Passed 2408 | 2269 139 Spaces Moved 307 | 223 84 Core 5 | 5 . Treads . | . . Legs . | . . Wheels 302 | 218 84 Hover . | . . Flight . | . . Fastest Speed 50 | 50 100 Average Speed 94 | 92 100 Slowest Speed 100 | 100 100 Overloaded Moves . | . . Propulsion Burnouts . | . . Robots Hopped . | . . Potential Cave-ins 1 | 1 . Cave-ins Triggered . | . . Exploration Rate (%) 16 | 20 12 Regions Visited 1 Branch Regions . Pre-discovered Areas . | . . Known Exits Taken . | . . Unknown Exits Taken 1 | 1 . Scrap Searched . | . . Spaces Dug . | . . Terrain Destroyed 1 | . 1 Melee . | . . Projectile 1 | . 1 AOE . | . . Terrain Rammed . | . . Walls Destroyed . | . . Machines Disabled . | . . Actions | -11 -10 --------- Run | Yrd Mat Total 2346 | 2223 123 Wait 1965 | 1941 24 Move 306 | 222 84 Hop . | . . Pick Up 16 | 15 1 Fast Attach . | . . Attach 12 | 12 . Detach . | . . Swap 4 | 2 2 Drop 1 | . 1 Fire 42 | 31 11 Melee . | . . Ram . | . . Kick . | . . Crush . | . . Escape Stasis . | . . Rewire . | . . Trap . | . . Miscellaneous . | . . Route ------- -11/Scrapyard -10/Materials History --------- Turn | Location | Event 28 | -11/Scrapyard | Discovered new exit (range 14) 1984 | -11/Scrapyard | Assembled infested the area 1990 | -11/Scrapyard | Core integrity fell below 50% 1992 | -11/Scrapyard | Core integrity fell below 20% 2024 | -11/Scrapyard | Lost 5 parts (1p2n1u1w) 2270 | -11/Scrapyard | Entered Materials 2271 | -10/Materials | Build established: Mutant 2409 | -10/Materials | Destroyed by G-34 Mercenary with Small Laser Last Messages --------------- 02253_ Com. Wheel destroyed. LOCATION=UNKNOWN GOAL=ESCAPE 02270_ ALERT: A rogue bot has emerged from the scrapyard. Terminate on contact. 02282_ Acquired Signal Interpreter. 02286_ Dropped Sml. Laser. 02324_ O-16 Technician: "IFF HANDSHAKE FAILED. SECURING TERMINAL." 02328_ O-16 Technician uses terminal to summon reinforcements. 02328_ ALERT: Hostiles spotted, dispatching reinforcements to Terminal M005. 02328_ O-16 Technician locks terminal. 02329_ Destroyed Datajack. 02343_ K-01 Serf collects debris. 02354_ K-01 Serf destroyed. 02360_ U-05 Engineer builds a Wall. 02361_ Terminal disabled. 02390_ Lgt. Ion Engine destroyed. Map ----- +----------------------------------------------------+ | ?????????????????????????????????????????????????? | | ?????????????????????????????????????????????????? | | ?????????????????????????????????????????????????? | | ?????????????????????????????????????????????????? | | ?????????????????????????????????????????????????? | | ?????????????????????????????????????????????????? | | ?????????????????????????????????????????????????? | | ?????????????????????????????????????????????????? | | ?????????????????????????????????????????????????? | | ???????????????????????????????????????????? ????? | | ???????????????????????????????????????????? ????? | | ????????????????????????????????????????????# ???? | | ????????????????????????????????????????????# ???? | | ????????????????????????????????????????????# ???? | | ????????????????????????????????????????????#^???? | | ????????????????????????????????????????????# ???? | | ????????????????????????????????????????????# ???? | | ??????????????###############???????????????# ???? | | ??????????????# #??????????????##=###? | | ??????????????# """ """ #??????????????# % ## | | ??????????????# """"""""" #?????##??###### ! | | ??????????????# """"" " #???? # T | | ??????????????# #????""" """ # #? | | ??????????????# [ #??? """ """ ## ##? | | ??????????????#######+#########??""" """ ## #?? | | ???????????????????# @ #???? ## #?? | | ???????????????????# #?????? ## #?? | | ???????????????????# #???????? ## ##? | | ???????????????????######## ###########+## #? | | ??????????????????????????# g #? | | ??????????????????????????# #? | | ??????????????????????????# #########+#### #? | | ??????????????????????????#####??# ######? | | ?????????????????????????????????# #???##? | | ?????????????????????????????????# """"" #?????? | | ?????????????????????????????????# """"" #?????? | | ?????????????????????????????????# """"" #?????? | | ?????????????????????????????????# #?????? | | ??????????????????????????????????? #?????? | | ??????????????????????????????????? #?????? | | ????????????????????????????????????#######??????? | | | | | | | | | | | | | | | | | | | +----------------------------------------------------+ Best States ------------- Heat Dissipation 25 Energy Generation 10 Energy Capacity 125 Matter Stores 300 Matter Capacity 300 Sight Range 16 Terrain Scan Range 16 Terrain Scan Density 10 Evasion (%) 44 Item Schematics ----------------- None Robot Schematics ------------------ None Fabricated ------------ Nothing Repaired ---------- Nothing Studied --------- None Alien Tech Used ----------------- None Achievements -------------- None Challenges ------------ None Game ------ Seed MetafiberFireCompressor Manual? 0 Play Time 00:08:05 Cumulative 80.1 hours Start 2026.08.12 @ 01:37:19 End 2026.08.12 @ 01:43:38 Sessions 1 Manual Loads 0 Difficulty Rogue Special Mode None Game No. 140 Rogue 140 Adventurer 0 Explorer 0 Win Type - Total 0 Types 0/0/0/0/0/0/0/0/0/0 Lore% 27 Gallery% 34 Achievement% 28 Wizard Run 0 Options --------- Layout 1 ASCII 0 Keyboard 0 Movement Mouse Keybinds 0 Fullscreen 1 Font 24/Smallcaps Map View 50x35 Zoom Use 0% Tactical HUD 1 Map Filters NONE Filters NONE Steam 1 RUN: 88016e17-c9ea-43b0-8cac-4abd8fe39754